fUSD/lending_fUSD_20240725
["ID","MTS","AMOUNT","RATE_DAILY","PERIOD"]
[333136955,1721885446636,-500.0,0.0001099,2]
[333136956,1721885446645,-500.0,0.0001099,2]
[333136957,1721885446655,-500.0,0.0001099,2]
[333136958,1721885446664,-500.0,0.0001099,2]
[333136959,1721885446673,-894.04,0.0001099,2]
[333136960,1721885446682,-500.0,0.0001099,2]
[333136961,1721885446691,-500.0,0.0001099,2]
[333136962,1721885446700,-500.0,0.0001099,2]
[333136963,1721885446709,-500.0,0.0001099,2]
[333136964,1721885446719,-500.0,0.0001099,2]
[333136965,1721885446728,-500.0,0.0001099,2]
[333136966,1721885446737,-500.0,0.0001099,2]
[333136967,1721885446747,-500.0,0.0001099,2]
[333136968,1721885446756,-500.0,0.0001099,2]
[333136969,1721885446766,-2267.29,0.0001099,2]
[333136970,1721885446775,-500.0,0.0001099,2]
[333136971,1721885446784,-500.0,0.0001099,2]
[333136972,1721885446794,-500.0,0.0001099,2]
[333136973,1721885446803,-589.22082816,0.0001099,2]
[333136974,1721885446812,-500.0,0.0001099,2]
[333136975,1721885446822,-505.3807827,0.0001099,2]
[333136976,1721885446831,-500.0,0.0001099,2]
[333136977,1721885446840,-500.0,0.0001099,2]
[333136978,1721885446849,-571.64119157,0.0001099,2]
[333136979,1721885446859,-1140.31,0.0001099,2]
[333136980,1721885446869,-547.02285708,0.0001099,2]
[333136981,1721885446879,-500.0,0.0001099,2]
[333136982,1721885446890,-1008.79,0.0001099,2]
[333136983,1721885446899,-500.0,0.0001099,2]
[333136984,1721885446908,-500.0,0.0001099,2]
[333136985,1721885446917,-500.0,0.0001099,2]
[333136986,1721885446926,-500.0,0.0001099,2]
[333136987,1721885446936,-2159.91,0.0001099,2]
[333136988,1721885446945,-500.0,0.0001099,2]
[333136989,1721885446954,-500.0,0.0001099,2]
[333136990,1721885446963,-500.0,0.0001099,2]
[333136991,1721885446973,-500.0,0.0001099,2]
[333136992,1721885446982,-500.0,0.0001099,2]
[333136993,1721885446991,-500.0,0.0001099,2]
[333136994,1721885447001,-500.0,0.0001099,2]
[333136995,1721885447010,-383.3213064,0.0001099,2]
[333136996,1721885447020,-1756.68,0.0001099,2]
[333136997,1721885447029,-500.0,0.0001099,2]
[333136998,1721885447039,-2356.43,0.0001099,2]
[333136999,1721885447048,-500.0,0.0001099,2]
[333137000,1721885447058,-507.46545067,0.0001099,2]
[333137001,1721885447068,-500.0,0.0001099,2]
[333137002,1721885447077,-508.30644857,0.0001099,2]
[333137003,1721885447087,-500.0,0.0001099,2]
[333137004,1721885447096,-1635.45,0.0001099,2]
[333137005,1721885447106,-508.22409944,0.0001099,2]
[333137006,1721885447117,-2951.37,0.0001099,2]
[333137007,1721885447126,-225.74172747,0.0001099,2]
[333137008,1721885447136,-500.0,0.0001099,2]
[333137009,1721885447148,-1278.27,0.0001099,2]
[333137010,1721885447157,-5636.82,0.0001099,2]
[333137011,1721885447166,-500.0,0.0001099,2]
[333137012,1721885447178,-500.0,0.0001099,2]
[333137013,1721885447189,-1464.7,0.0001099,2]
[333137014,1721885447198,-1473.48,0.0001099,2]
[333137015,1721885447207,-1390.5,0.0001099,2]
[333137016,1721885447217,-3117.02,0.0001099,2]
[333137017,1721885447226,-7617.76,0.0001099,2]
[333137018,1721885447236,-3386.38,0.0001099,2]
[333137019,1721885447245,-6341.92,0.0001099,2]
[333137020,1721885447255,-2044.75,0.0001099,2]
[333137021,1721885447265,-2784.08,0.0001099,2]
[333137022,1721885447275,-2075.54,0.0001099,2]
[333137023,1721885447284,-501.11246155,0.0001099,2]
[333137024,1721885447293,-500.0,0.0001099,2]
[333137025,1721885447302,-500.0,0.0001099,2]
[333137026,1721885447311,-2072.88,0.0001099,2]
[333137027,1721885447323,-500.0,0.0001099,2]
[333137028,1721885447332,-2825.08,0.0001099,2]
[333137029,1721885447342,-500.0,0.0001099,2]
[333137030,1721885447353,-1262.86,0.0001099,2]
[333137031,1721885447364,-166.37211031,0.0001099,2]
[333137032,1721885447373,-2219.42,0.0001099,2]
[333137033,1721885447382,-500.0,0.0001099,2]
[333137034,1721885447392,-8931.09,0.0001099,2]
[333137035,1721885447403,-2028.08,0.0001099,2]
[333137036,1721885447416,-2441.91,0.0001099,2]
[333137037,1721885447426,-9662.25,0.0001099,2]
[333137038,1721885447436,-2162.49,0.0001099,2]
[333137039,1721885447446,-2613.84,0.0001099,2]
[333137040,1721885447456,-1311.42,0.0001099,2]
[333137041,1721885447465,-2943.49,0.0001099,2]
[333137042,1721885447474,-500.0,0.0001099,2]
[333137043,1721885447483,-500.83,0.0001099,2]
[333137044,1721885447496,-500.0,0.0001099,2]
[333137045,1721885447505,-2470.82,0.0001099,2]
[333137046,1721885447514,-1645.65,0.0001099,2]
[333137047,1721885447523,-500.0,0.00010991,2]
[333137048,1721885447532,-500.0,0.00010991,2]
[333137049,1721885447542,-1257.18,0.00010991,2]
[333137050,1721885447551,-1288.86,0.00010991,2]
[333137051,1721885447560,-500.0,0.00010991,2]
[333137052,1721885447570,-612.12,0.00010991,2]
[333137053,1721885447579,-1537.43,0.00010991,2]
[333137054,1721885447589,-1518.7,0.00010991,2]
[333137055,1721885447599,-1783.31,0.00010991,2]
[333137056,1721885447608,-1007.04,0.00010991,2]
[333137057,1721885447618,-1145.49,0.00010991,2]
[333137058,1721885447627,-500.0,0.00010991,2]
[333137059,1721885447636,-1293.54,0.00010991,2]
[333137060,1721885447645,-500.0,0.00010991,2]
[333137061,1721885447655,-1463.77,0.00010991,2]
[333137062,1721885447664,-980.84,0.00010991,2]
[333137063,1721885447674,-628.53,0.00010991,2]
[333137064,1721885447683,-2016.09,0.00010991,2]
[333137065,1721885447692,-1142.86,0.00010991,2]
[333137066,1721885447702,-500.0,0.00010991,2]
[333137067,1721885447712,-1625.85,0.00010991,2]
[333137068,1721885447722,-979.54,0.00010991,2]
[333137069,1721885447733,-1583.32,0.00010991,2]
[333137070,1721885447744,-634.88901244,0.00010991,2]
[333137071,1721885447753,-1317.73,0.00010991,2]
[333137072,1721885447764,-500.0,0.00010991,2]
[333137073,1721885447775,-924.25,0.00010991,2]
[333137074,1721885447784,-1188.5,0.00010991,2]
[333137075,1721885447794,-3361.54,0.00010991,2]
[333137076,1721885447803,-3394.4,0.00010991,2]
[333137077,1721885447812,-2587.03,0.00010991,2]
[333137078,1721885447821,-3159.19,0.00010991,2]
[333137079,1721885447831,-1196.49,0.00010991,2]
[333137080,1721885447840,-500.0,0.00010991,2]
[333137081,1721885447850,-1496.03,0.00010991,2]
[333137082,1721885447859,-1166.32,0.00010991,2]
[333137083,1721885447868,-2120.38,0.00010991,2]
[333137084,1721885447878,-2140.44,0.00010991,2]
[333137085,1721885447887,-2521.29,0.00010991,2]
[333137086,1721885447896,-1737.09,0.00010991,2]
[333137087,1721885447906,-500.0,0.00010991,2]
[333137088,1721885447915,-500.0,0.00010991,2]
[333137089,1721885447925,-500.0,0.00010991,2]
[333137090,1721885447935,-500.0,0.00010991,2]
[333137091,1721885447945,-1636.4,0.00010991,2]
[333137092,1721885447955,-2258.71,0.00010991,2]
[333137093,1721885447965,-1420.86,0.00010991,2]
[333137094,1721885447974,-1692.87,0.00010991,2]
[333137095,1721885447983,-500.0,0.00010991,2]
[333137096,1721885447993,-1354.85,0.00010991,2]
[333137097,1721885448002,-1652.76,0.00010991,2]
[333137098,1721885448012,-500.0,0.00010991,2]
[333137099,1721885448021,-2125.76,0.00010991,2]
[333137100,1721885448031,-1324.2,0.00010991,2]
[333137101,1721885448040,-921.17,0.00010991,2]
[333137102,1721885448049,-1966.41,0.00010991,2]
[333137103,1721885448059,-500.0,0.00010991,2]
[333137104,1721885448068,-2143.66,0.00010991,2]
[333137105,1721885448077,-2728.56,0.00010991,2]
[333137106,1721885448086,-2611.71,0.00010991,2]
[333137107,1721885448096,-500.0,0.00010991,2]
[333137108,1721885448106,-1006.58,0.00010991,2]
[333137109,1721885448117,-2026.97,0.00010991,2]
[333137110,1721885448126,-500.0,0.00010991,2]
[333137111,1721885448136,-668.37,0.00010991,2]
[333137112,1721885448149,-880.6,0.00010991,2]
[333137113,1721885448158,-500.0,0.00010991,2]
[333137114,1721885448168,-2439.49,0.00010991,2]
[333137115,1721885448177,-1882.52,0.00010991,2]
[333137116,1721885448187,-2599.45,0.00010991,2]
[333137117,1721885448196,-969.33,0.00010991,2]
[333137118,1721885448206,-1670.77,0.00010991,2]
[333137119,1721885448215,-500.0,0.00010991,2]
[333137120,1721885448227,-699.26,0.00010991,2]
[333137121,1721885448237,-1797.59,0.00010991,2]
[333137122,1721885448246,-534.76,0.00010991,2]
[333137123,1721885448256,-688.02,0.00010991,2]
[333137124,1721885448265,-1061.78,0.00010991,2]
[333137125,1721885448275,-500.0,0.00010991,2]
[333137126,1721885448284,-500.0,0.00010991,2]
[333137127,1721885448293,-1343.67,0.00010991,2]
[333137128,1721885448302,-2247.13,0.00010991,2]
[333137129,1721885448312,-638.42,0.00010991,2]
[333137130,1721885448321,-500.0,0.00010991,2]
[333137131,1721885448331,-500.0,0.00010991,2]
[333137132,1721885448342,-1664.94,0.00010991,2]
[333137133,1721885448351,-1719.34,0.00010991,2]
[333137134,1721885448361,-1193.95,0.00010991,2]
[333137135,1721885448370,-1280.51,0.00010991,2]
[333137136,1721885448379,-2311.2,0.00010991,2]
[333137137,1721885448389,-1871.19,0.00010991,2]
[333137138,1721885448398,-500.0,0.00010991,2]
[333137139,1721885448407,-1744.71,0.00010991,2]
[333137140,1721885448417,-851.07,0.00010991,2]
[333137141,1721885448426,-1056.95,0.00010991,2]
[333137142,1721885448436,-2620.83,0.00010991,2]
[333137143,1721885448445,-2002.0,0.00010991,2]
[333137144,1721885448454,-3217.72,0.00010991,2]
[333137145,1721885448465,-2599.98,0.00010991,2]
[333137146,1721885448475,-500.0,0.00010991,2]
[333137147,1721885448484,-1183.24,0.00010991,2]
[333137148,1721885448494,-737.03,0.00010991,2]
[333137149,1721885448503,-1295.55,0.00010991,2]
[333137150,1721885448513,-1635.76,0.00010991,2]
[333137151,1721885448524,-1281.79,0.00010991,2]
[333137152,1721885448534,-500.0,0.00010991,2]
[333137153,1721885448543,-4119.7,0.00010991,2]
[333137154,1721885448553,-1235.77,0.00010991,2]
[333137155,1721885448563,-1305.84,0.00010991,2]
[333137156,1721885448572,-877.42,0.00010991,2]
[333137157,1721885448582,-2740.55,0.00010991,2]
[333137158,1721885448592,-556.54,0.00010991,2]
[333137159,1721885448602,-714.11,0.00010991,2]
[333137160,1721885448613,-2586.8,0.00010991,2]
[333137161,1721885448622,-1701.25,0.00010991,2]
[333137162,1721885448631,-500.0,0.00010991,2]
[333137163,1721885448641,-596.9,0.00010991,2]
[333137164,1721885448650,-500.0,0.00010991,2]
[333137165,1721885448660,-2838.84,0.00010991,2]
[333137166,1721885448670,-627.78263642,0.00010991,2]
[333137167,1721885448680,-2911.86,0.00010991,2]
[333137168,1721885448690,-9011.92,0.00010991,2]
[333137169,1721885448700,-728.32,0.00010991,2]
[333137170,1721885448709,-500.0,0.00010991,2]
[333137171,1721885448718,-500.0,0.00010991,2]
[333137172,1721885448728,-3215.54,0.00010991,2]
[333137173,1721885448738,-500.0,0.00010991,2]
[333137174,1721885448748,-8931.09,0.00010991,2]
[333137175,1721885448757,-1264.57,0.00010991,2]
[333137176,1721885448767,-4180.16,0.00010991,2]
[333137177,1721885448777,-2028.08,0.00010991,2]
[333137178,1721885448787,-1973.51,0.00010991,2]
[333137179,1721885448797,-2765.39,0.00010991,2]
[333137180,1721885448806,-151.0,0.00010991,2]
[333137181,1721885448815,-2391.14,0.00010991,2]
[333137182,1721885448825,-1817.83,0.00010991,2]
[333137183,1721885448834,-1598.01,0.00010991,2]
[333137184,1721885448843,-2223.77,0.00010991,2]
[333137185,1721885448853,-4013.21,0.00010991,2]
[333137186,1721885448862,-3137.44,0.00010991,2]
[333137187,1721885448872,-3134.13,0.00010991,2]
[333137188,1721885448881,-4489.28,0.00010991,2]
[333137189,1721885448891,-2613.84,0.00010991,2]
[333137190,1721885448900,-1311.42,0.00010991,2]
[333137191,1721885448910,-2672.56,0.00010991,2]
[333137192,1721885448920,-500.0,0.00010991,2]
[333137193,1721885448930,-2423.63,0.00010991,2]
[333137194,1721885448940,-500.83,0.00010991,2]
[333137195,1721885448950,-500.0,0.00010991,2]
[333137196,1721885448959,-1645.65,0.00010991,2]
[333137197,1721885448969,-2000.0,0.00010992,2]
[333137198,1721885448978,-200.0,0.00010992,2]
[333137199,1721885448987,-2000.0,0.00010992,2]
[333137200,1721885448997,-200.0,0.00010992,2]
[333137201,1721885449007,-2000.0,0.00010992,2]
[333137202,1721885449017,-200.0,0.00010992,2]
[333137203,1721885449026,-4988.3788545,0.00010992,2]
[333137204,1721885449036,-91989.6885739,0.00010992,2]
[333137205,1721885449043,-151.0,0.00010992,2]
[333137206,1721885449050,-2219.41065,0.00010992,2]
[333137207,1721885449188,-10337.9806281,0.00010992,2]
[333137208,1721885449198,-500.0,0.00010994,2]
[333137209,1721885449204,-500.0,0.00010994,2]
[333137210,1721885449214,-500.0,0.00010994,2]
[333137211,1721885449223,-500.0,0.00010994,2]
[333137212,1721885449231,-167.25934231,0.00010994,2]
[333137213,1721885449241,-985.79,0.00010994,2]
[333137214,1721885449249,-500.0,0.00010994,2]
[333137215,1721885449257,-500.0,0.00010994,2]
[333137216,1721885449264,-519.72,0.00010994,2]
[333137217,1721885449271,-500.0,0.00010994,2]
[333137218,1721885449281,-1827.18,0.00010994,2]
[333137219,1721885449291,-500.0,0.00010994,2]
[333137220,1721885449302,-574.22975858,0.00010994,2]
[333137221,1721885449312,-845.17,0.00010994,2]
[333137222,1721885449322,-500.0,0.00010994,2]
[333137223,1721885449333,-500.0,0.00010994,2]
[333137224,1721885449345,-500.0,0.00010994,2]
[333137225,1721885449356,-500.0,0.00010994,2]
[333137226,1721885449367,-772.91,0.00010994,2]
[333137227,1721885449378,-641.81,0.00010994,2]
[333137228,1721885449388,-500.0,0.00010994,2]
[333137229,1721885449399,-500.0,0.00010994,2]
[333137230,1721885449410,-508.06117393,0.00010994,2]
[333137231,1721885449422,-500.0,0.00010994,2]
[333137232,1721885449433,-624.45,0.00010994,2]
[333137233,1721885449444,-730.92,0.00010994,2]
[333137234,1721885449455,-500.0,0.00010994,2]
[333137235,1721885449466,-581.99,0.00010994,2]
[333137236,1721885449476,-500.0,0.00010994,2]
[333137237,1721885449487,-500.0,0.00010994,2]
[333137238,1721885449498,-525.41980997,0.00010994,2]
[333137239,1721885449509,-500.0,0.00010994,2]
[333137240,1721885449521,-500.0,0.00010994,2]
[333137241,1721885449532,-561.86,0.00010994,2]
[333137242,1721885449543,-500.0,0.00010994,2]
[333137243,1721885449554,-866.98,0.00010994,2]
[333137244,1721885449566,-500.0,0.00010994,2]
[333137245,1721885449578,-500.0,0.00010994,2]
[333137246,1721885449589,-500.0,0.00010994,2]
[333137247,1721885449600,-500.0,0.00010994,2]
[333137248,1721885449611,-500.0,0.00010994,2]
[333137249,1721885449623,-500.0,0.00010994,2]
[333137250,1721885449635,-500.0,0.00010994,2]
[333137251,1721885449645,-500.0,0.00010994,2]
[333137252,1721885449655,-500.0,0.00010994,2]
[333137253,1721885449667,-500.0,0.00010994,2]
[333137254,1721885449678,-500.0,0.00010994,2]
[333137255,1721885449689,-500.0,0.00010994,2]
[333137256,1721885449700,-806.1,0.00010994,2]
[333137257,1721885449710,-535.27,0.00010994,2]
[333137258,1721885449721,-500.0,0.00010994,2]
[333137259,1721885449732,-500.0,0.00010994,2]
[333137260,1721885449742,-500.0,0.00010994,2]
[333137261,1721885449752,-500.0,0.00010994,2]
[333137262,1721885449762,-500.0,0.00010994,2]
[333137263,1721885449773,-500.0,0.00010994,2]
[333137264,1721885449784,-500.0,0.00010994,2]
[333137265,1721885449799,-1017.09,0.00010994,2]
[333137266,1721885449810,-500.0,0.00010994,2]
[333137267,1721885449820,-500.0,0.00010994,2]
[333137268,1721885449831,-500.0,0.00010994,2]
[333137269,1721885449842,-500.0,0.00010994,2]
[333137270,1721885449852,-2470.82,0.00010994,2]
[333137271,1721885449864,-500.0,0.00010995,2]
[333137272,1721885449874,-500.0,0.00010995,2]
[333137273,1721885449884,-500.0,0.00010995,2]
[333137274,1721885449895,-894.58,0.00010995,2]
[333137275,1721885449906,-500.0,0.00010995,2]
[333137276,1721885449916,-500.0,0.00010995,2]
[333137277,1721885449926,-500.0,0.00010995,2]
[333137278,1721885449937,-500.0,0.00010995,2]
[333137279,1721885449947,-520.74531489,0.00010995,2]
[333137280,1721885449957,-1806.92,0.00010995,2]
[333137281,1721885449967,-518.64644646,0.00010995,2]
[333137282,1721885449978,-500.0,0.00010995,2]
[333137283,1721885449988,-500.0,0.00010995,2]
[333137284,1721885449998,-499.33127787,0.00010995,2]
[333137285,1721885450009,-675.21,0.00010995,2]
[333137286,1721885450020,-1262.2,0.00010995,2]
[333137287,1721885450030,-397.52849714,0.00010995,2]
[333137288,1721885450041,-500.0,0.00010995,2]
[333137289,1721885450051,-500.0,0.00010995,2]
[333137290,1721885450061,-500.0,0.00010995,2]
[333137291,1721885450071,-500.0,0.00010995,2]
[333137292,1721885450082,-500.0,0.00010995,2]
[333137293,1721885450092,-500.0,0.00010995,2]
[333137294,1721885450102,-500.0,0.00010995,2]
[333137295,1721885450112,-500.0,0.00010995,2]
[333137296,1721885450123,-780.02,0.00010995,2]
[333137297,1721885450132,-500.0,0.00010995,2]
[333137298,1721885450148,-1540.06,0.00010995,2]
[333137299,1721885450157,-1644.69,0.00010995,2]
[333137300,1721885450166,-168.18,0.00010995,2]
[333137301,1721885450176,-500.0,0.00010995,2]
[333137302,1721885450187,-1314.2,0.00010995,2]
[333137303,1721885450197,-500.0,0.00010995,2]
[333137304,1721885450207,-500.0,0.00010995,2]
[333137305,1721885450216,-500.0,0.00010995,2]
[333137306,1721885450227,-515.10115058,0.00010995,2]
[333137307,1721885450237,-500.0,0.00010995,2]
[333137308,1721885450247,-500.0,0.00010995,2]
[333137309,1721885450257,-640.81,0.00010995,2]
[333137310,1721885450266,-500.0,0.00010995,2]
[333137311,1721885450276,-500.0,0.00010995,2]
[333137312,1721885450285,-500.0,0.00010995,2]
[333137313,1721885450295,-1245.37,0.00010995,2]
[333137314,1721885450305,-500.0,0.00010995,2]
[333137315,1721885450316,-2017.08,0.00010995,2]
[333137316,1721885450326,-217.87311842,0.00010995,2]
[333137317,1721885450336,-500.0,0.00010995,2]
[333137318,1721885450346,-1348.91,0.00010995,2]
[333137319,1721885450357,-500.0,0.00010995,2]
[333137320,1721885450367,-500.0,0.00010995,2]
[333137321,1721885450377,-500.0,0.00010995,2]
[333137322,1721885450385,-564.85,0.00010995,2]
[333137323,1721885450395,-1860.03,0.00010995,2]
[333137324,1721885450404,-573.8,0.00010995,2]
[333137325,1721885450416,-819.64,0.00010995,2]
[333137326,1721885450425,-500.0,0.00010995,2]
[333137327,1721885450434,-500.0,0.00010995,2]
[333137328,1721885450446,-500.0,0.00010995,2]
[333137329,1721885450456,-500.0,0.00010995,2]
[333137330,1721885450466,-500.0,0.00010995,2]
[333137331,1721885450476,-500.0,0.00010995,2]
[333137332,1721885450485,-500.0,0.00010995,2]
[333137333,1721885450495,-500.0,0.00010995,2]
[333137334,1721885450505,-504.23017722,0.00010995,2]
[333137335,1721885450514,-583.54193621,0.00010995,2]
[333137336,1721885450524,-500.0,0.00010995,2]
[333137337,1721885450534,-500.0,0.00010995,2]
[333137338,1721885450543,-502.11,0.00010995,2]
[333137339,1721885450554,-500.0,0.00010995,2]
[333137340,1721885450563,-500.0,0.00010995,2]
[333137341,1721885450572,-500.0,0.00010995,2]
[333137342,1721885450581,-500.0,0.00010995,2]
[333137343,1721885450590,-500.0,0.00010995,2]
[333137344,1721885450600,-500.0,0.00010995,2]
[333137345,1721885450609,-500.0,0.00010995,2]
[333137346,1721885450619,-500.0,0.00010995,2]
[333137347,1721885450629,-611.5636356,0.00010995,2]
[333137348,1721885450638,-500.0,0.00010995,2]
[333137349,1721885450647,-877.42,0.00010995,2]
[333137350,1721885450658,-2586.8,0.00010995,2]
[333137351,1721885450667,-596.9,0.00010995,2]
[333137352,1721885450677,-9011.92,0.00010995,2]
[333137353,1721885450687,-8931.09,0.00010995,2]
[333137354,1721885450697,-4180.16,0.00010995,2]
[333137355,1721885450707,-2028.08,0.00010995,2]
[333137356,1721885450718,-2391.14,0.00010995,2]
[333137357,1721885450728,-1598.01,0.00010995,2]
[333137358,1721885450738,-4013.21,0.00010995,2]
[333137359,1721885450747,-3134.13,0.00010995,2]
[333137360,1721885450757,-4489.28,0.00010995,2]
[333137361,1721885450767,-2613.84,0.00010995,2]
[333137362,1721885450777,-1311.42,0.00010995,2]
[333137363,1721885450787,-500.0,0.00010995,2]
[333137364,1721885450797,-2423.63,0.00010995,2]
[333137365,1721885450807,-500.83,0.00010995,2]
[333137366,1721885450818,-500.0,0.00010995,2]
[333137367,1721885450829,-1000.0,0.00010995,2]
[333137368,1721885450839,-1000.0,0.00010995,2]
[333137369,1721885450851,-1000.0,0.00010995,2]
[333137370,1721885450860,-1000.0,0.00010995,2]
[333137371,1721885450872,-1000.0,0.00010995,2]
[333137372,1721885450882,-1000.0,0.00010995,2]
[333137373,1721885450892,-1000.0,0.00010995,2]
[333137374,1721885450903,-1000.0,0.00010995,2]
[333137375,1721885450911,-1000.0,0.00010995,2]
[333137376,1721885450922,-1000.0,0.00010995,2]
[333137377,1721885450931,-1000.0,0.00010995,2]
[333137378,1721885450941,-1000.0,0.00010995,2]
[333137379,1721885450950,-1000.0,0.00010995,2]
[333137380,1721885450959,-1000.0,0.00010995,2]
[333137381,1721885450968,-1000.0,0.00010995,2]
[333137382,1721885450977,-1000.0,0.00010995,2]
[333137383,1721885450986,-1000.0,0.00010995,2]
[333137384,1721885450995,-1000.0,0.00010995,2]
[333137385,1721885451004,-1000.0,0.00010995,2]
[333137386,1721885451013,-1000.0,0.00010995,2]
[333137387,1721885451022,-1000.0,0.00010995,2]
[333137388,1721885451032,-1000.0,0.00010995,2]
[333137389,1721885451041,-1000.0,0.00010995,2]
[333137390,1721885451050,-1000.0,0.00010995,2]
[333137391,1721885451060,-1000.0,0.00010995,2]
[333137392,1721885451069,-1000.0,0.00010995,2]
[333137393,1721885451079,-1000.0,0.00010995,2]
[333137394,1721885451088,-964.0,0.00010995,2]
[333137395,1721885451097,-746.85,0.00010996,2]
[333137396,1721885451105,-500.0,0.00010996,2]
[333137397,1721885451114,-500.0,0.00010996,2]
[333137398,1721885451124,-500.0,0.00010996,2]
[333137399,1721885451133,-340.81730958,0.00010996,2]
[333137400,1721885451144,-500.0,0.00010996,2]
[333137401,1721885451154,-500.0,0.00010996,2]
[333137402,1721885451163,-1241.35,0.00010996,2]
[333137403,1721885451173,-500.0,0.00010996,2]
[333137404,1721885451182,-1358.21,0.00010996,2]
[333137405,1721885451192,-1420.86,0.00010996,2]
[333137406,1721885451201,-500.0,0.00010996,2]
[333137407,1721885451210,-500.0,0.00010996,2]
[333137408,1721885451220,-1652.76,0.00010996,2]
[333137409,1721885451229,-464.8326313,0.00010996,2]
[333137410,1721885451238,-500.0,0.00010996,2]
[333137411,1721885451247,-500.0,0.00010996,2]
[333137412,1721885451256,-1324.2,0.00010996,2]
[333137413,1721885451265,-512.51489113,0.00010996,2]
[333137414,1721885451274,-500.0,0.00010996,2]
[333137415,1721885451283,-500.0,0.00010996,2]
[333137416,1721885451292,-660.6,0.00010996,2]
[333137417,1721885451301,-1966.41,0.00010996,2]
[333137418,1721885451310,-500.0,0.00010996,2]
[333137419,1721885451319,-500.0,0.00010996,2]
[333137420,1721885451329,-506.42,0.00010996,2]
[333137421,1721885451338,-500.0,0.00010996,2]
[333137422,1721885451347,-2611.71,0.00010996,2]
[333137423,1721885451356,-500.0,0.00010996,2]
[333137424,1721885451366,-500.0,0.00010996,2]
[333137425,1721885451375,-972.39,0.00010996,2]
[333137426,1721885451384,-1006.58,0.00010996,2]
[333137427,1721885451393,-500.0,0.00010996,2]
[333137428,1721885451402,-500.0,0.00010996,2]
[333137429,1721885451411,-510.23386512,0.00010996,2]
[333137430,1721885451420,-500.0,0.00010996,2]
[333137431,1721885451429,-500.0,0.00010996,2]
[333137432,1721885451438,-500.0,0.00010996,2]
[333137433,1721885451447,-500.0,0.00010996,2]
[333137434,1721885451457,-500.0,0.00010996,2]
[333137435,1721885451466,-668.37,0.00010996,2]
[333137436,1721885451475,-500.0,0.00010996,2]
[333137437,1721885451484,-500.0,0.00010996,2]
[333137438,1721885451493,-500.0,0.00010996,2]
[333137439,1721885451502,-500.0,0.00010996,2]
[333137440,1721885451512,-894.04,0.00010996,2]
[333137441,1721885451521,-500.0,0.00010996,2]
[333137442,1721885451530,-969.33,0.00010996,2]
[333137443,1721885451539,-500.0,0.00010996,2]
[333137444,1721885451548,-500.0,0.00010996,2]
[333137445,1721885451558,-500.0,0.00010996,2]
[333137446,1721885451567,-500.0,0.00010996,2]
[333137447,1721885451577,-500.0,0.00010996,2]
[333137448,1721885451586,-500.0,0.00010996,2]
[333137449,1721885451595,-534.76,0.00010996,2]
[333137450,1721885451605,-369.82437748,0.00010996,2]
[333137451,1721885451614,-500.0,0.00010996,2]
[333137452,1721885451624,-500.0,0.00010996,2]
[333137453,1721885451633,-2267.29,0.00010996,2]
[333137454,1721885451643,-688.02,0.00010996,2]